fUST/lending_fUST_20250912
["ID","MTS","AMOUNT","RATE_DAILY","PERIOD"]
[385087244,1757661051453,-1300.63,0.00025964,7]
[385087246,1757661051462,-1431.28,0.00025999,10]
[385087248,1757661051472,-2000.0,0.00025999,7]
[385087250,1757661051482,-471269.07706787,0.00026,7]
[385087252,1757661051492,-350.57263987,0.00026,30]
[385087254,1757661051501,-200.0,0.00026,14]
[385087256,1757661051512,-522.0823094,0.00026,2]
[385087258,1757661051522,-19900.0,0.00026,2]
[385087260,1757661051532,-1567.10853367,0.00026,3]
[385087262,1757661051541,-814.2,0.00026006,7]
[385087264,1757661051551,-500.0,0.00026019,2]
[385087266,1757661051561,-157.85,0.00026022,7]
[385087268,1757661051571,-167.0,0.00026022,7]
[385087270,1757661051580,-406.96227379,0.00026027,4]
[385087272,1757661051590,-1259.66,0.00026027,4]
[385087273,1757661051599,-730.0,0.00026028,2]
[385087275,1757661051608,-1300.63,0.00026031,7]
[385087277,1757661051618,-155.44,0.00026031,7]
[385087279,1757661051627,-260.53302523,0.00026034,2]
[385087281,1757661051636,-2072.76,0.00026038,2]
[385087283,1757661051647,-1100.0,0.00026039,2]
[385087285,1757661051656,-179.84,0.00026052,7]
[385087287,1757661051665,-1300.63,0.00026064,7]
[385087289,1757661051674,-150.52,0.00026073,7]
[385087291,1757661051684,-167.0,0.00026073,7]
[385087293,1757661051693,-150.52,0.00026085,7]
[385087295,1757661051702,-150.52,0.00026085,7]
[385087297,1757661051712,-1582.4,0.000261,7]
[385087299,1757661051721,-2905.35,0.000261,7]
[385087301,1757661051731,-1100.0,0.00026116,2]
[385087303,1757661051741,-157.85,0.00026122,7]
[385087305,1757661051751,-1300.63,0.00026131,7]
[385087307,1757661051760,-500.0,0.00026136,2]
[385087309,1757661051769,-1100.0,0.00026149,2]
[385087311,1757661051778,-179.84,0.00026152,7]
[385087313,1757661051787,-191.73104411,0.0002616,2]
[385087315,1757661051797,-1300.63724998,0.00026164,7]
[385087317,1757661051806,-150.52,0.00026173,7]
[385087319,1757661051815,-167.0,0.00026173,7]
[385087321,1757661051824,-150.52,0.00026185,7]
[385087322,1757661051833,-150.52,0.00026185,7]
[385087324,1757661051842,-2600.0,0.00026192,2]
[385087326,1757661051852,-1100.0,0.00026199,2]
[385087328,1757661051861,-202.0,0.000262,15]
[385087330,1757661051870,-958.07191453,0.00026212,2]
[385087332,1757661051879,-157.85,0.00026222,7]
[385087334,1757661051889,-1300.63,0.00026231,7]
[385087336,1757661051898,-1100.0,0.00026249,2]
[385087338,1757661051906,-179.84,0.00026252,7]
[385087340,1757661051916,-150.52,0.00026273,7]
[385087342,1757661051925,-167.01126464,0.00026273,7]
[385087344,1757661051935,-800.0,0.00026277,2]
[385087346,1757661051944,-500.0,0.00026277,2]
[385087348,1757661051954,-150.52,0.00026285,7]
[385087350,1757661051963,-150.52,0.00026285,7]
[385087352,1757661051972,-7678.54239753,0.00026291,5]
[385087354,1757661051981,-450.0,0.00026301,2]
[385087355,1757661051990,-730.0,0.00026302,2]
[385087357,1757661052000,-157.85,0.00026322,7]
[385087359,1757661052009,-1300.63,0.00026331,7]
[385087361,1757661052019,-500.0,0.00026339,2]
[385087363,1757661052028,-179.86932288,0.00026352,7]
[385087365,1757661052037,-1100.0,0.00026372,2]
[385087367,1757661052047,-150.52,0.00026385,7]
[385087369,1757661052056,-150.52,0.00026385,7]
[385087371,1757661052066,-500.0,0.00026399,2]
[385087373,1757661052076,-96670.92,0.000264,7]
[385087375,1757661052085,-10294.11,0.000264,7]
[385087377,1757661052095,-260.53302523,0.00026412,2]
[385087379,1757661052105,-1300.63,0.00026431,7]
[385087381,1757661052115,-1100.0,0.00026453,2]
[385087383,1757661052128,-500.0,0.00026475,2]
[385087385,1757661052138,-1100.0,0.00026485,2]
[385087387,1757661052147,-150.52,0.00026485,7]
[385087389,1757661052157,-150.52,0.00026485,7]
[385087391,1757661052167,-6613.75458258,0.00026502,2]
[385087393,1757661052176,-500.0,0.00026529,2]
[385087395,1757661052186,-1300.63,0.00026531,7]
[385087397,1757661052198,-499.3,0.00026535,2]
[385087399,1757661052207,-800.0,0.00026535,2]
[385087401,1757661052216,-730.0,0.00026576,2]
[385087403,1757661052226,-150.52,0.00026585,7]
[385087405,1757661052235,-150.52,0.00026585,7]
[385087407,1757661052244,-1100.0,0.00026594,2]
[385087409,1757661052254,-293.85068442,0.00026597,2]
[385087411,1757661052264,-1100.0,0.00026597,2]
[385087413,1757661052274,-1300.63,0.00026631,7]
[385087415,1757661052283,-500.0,0.00026658,2]
[385087417,1757661052293,-511.81222277,0.00026659,2]
[385087419,1757661052302,-1100.0,0.00026676,2]
[385087421,1757661052312,-717.355524,0.00026676,2]
[385087422,1757661052322,-150.52,0.00026685,7]
[385087424,1757661052331,-150.52,0.00026685,7]
[385087426,1757661052341,-7678.54239753,0.0002669,6]
[385087428,1757661052351,-1300.63,0.00026731,7]
[385087430,1757661052360,-800.0,0.00026779,2]
[385087432,1757661052369,-500.0,0.0002678,2]
[385087434,1757661052378,-150.52,0.00026785,7]
[385087436,1757661052388,-260.53302523,0.00026791,2]
[385087438,1757661052398,-814.2,0.00026807,7]
[385087440,1757661052407,-500.0,0.00026813,2]
[385087442,1757661052417,-500.0,0.00026827,2]
[385087444,1757661052426,-500.0,0.00026828,2]
[385087446,1757661052436,-1300.63,0.00026831,7]
[385087448,1757661052445,-500.0,0.00026842,2]
[385087450,1757661052454,-550.0,0.00026849,2]
[385087452,1757661052463,-730.0,0.0002685,2]
[385087465,1757661052579,-1100.0,0.00026866,2]
[385087467,1757661052589,-5871.81328249,0.00026875,30]
[385087469,1757661052599,-150.52,0.00026885,7]
[385087471,1757661052610,-1300.63,0.00026931,7]
[385087473,1757661052619,-1100.0,0.00026979,2]
[385087475,1757661052629,-329.36531348,0.00026983,7]
[385087477,1757661052639,-150.52,0.00026985,7]
[385087479,1757661052649,-500.0,0.00026988,2]
[385087481,1757661052658,-600.0,0.00027,14]
[385087483,1757661052667,-1486.43566667,0.00027008,2]
[385087485,1757661052677,-1300.63,0.00027031,7]
[385087487,1757661052686,-500.0,0.00027032,2]
[385087489,1757661052696,-800.0,0.00027033,2]
[385087491,1757661052706,-150.52,0.00027085,7]
[385087493,1757661052715,-7678.54239753,0.0002709,6]
[385087494,1757661052725,-1582.4,0.000271,7]
[385087496,1757661052734,-6613.75458258,0.00027102,2]
[385087498,1757661052744,-1486.43566667,0.00027108,2]
[385087500,1757661052754,-1001.3844099,0.00027123,3]
[385087502,1757661052764,-730.0,0.00027124,2]
[385087504,1757661052774,-1300.63,0.00027131,7]
[385087506,1757661052784,-500.0,0.00027132,2]
[385087508,1757661052793,-500.0,0.00027154,2]
[385087510,1757661052802,-782.60756521,0.00027156,2]
[385087512,1757661052812,-260.53302523,0.00027169,2]
[385087514,1757661052821,-150.52,0.00027185,7]
[385087516,1757661052831,-1486.43566667,0.00027208,2]
[385087518,1757661052840,-1300.63,0.00027231,7]
[385087520,1757661052850,-800.0,0.00027246,2]
[385087522,1757661052859,-500.0,0.00027249,2]
[385087524,1757661052868,-800.0,0.00027253,2]
[385087526,1757661052877,-1000.0,0.00027257,20]
[385087528,1757661052886,-1000.0,0.00027257,20]
[385087530,1757661052895,-174.18485673,0.00027259,2]
[385087532,1757661052904,-1100.0,0.0002729,2]
[385087534,1757661052913,-500.0,0.00027296,2]
[385087536,1757661052922,-500.0,0.00027296,2]
[385087538,1757661052932,-2905.35,0.000273,7]
[385087540,1757661052942,-1486.43566667,0.00027308,2]
[385087542,1757661052952,-160.03233712,0.00027319,2]
[385087544,1757661052961,-1300.65174999,0.00027331,7]
[385087545,1757661052971,-174.18485673,0.00027359,2]
[385087547,1757661052980,-500.0,0.0002737,5]
[385087549,1757661052990,-500.0,0.0002737,20]
[385087551,1757661052999,-500.0,0.0002737,5]
[385087553,1757661053009,-500.0,0.0002737,5]
[385087555,1757661053018,-505.12755768,0.0002737,20]
[385087557,1757661053028,-49747.48504698,0.0002738,60]
[385087560,1757661053038,-197.44134851,0.0002739,2]
[385087561,1757661053047,-161.34892805,0.0002739,7]
[385087563,1757661053056,-400.0,0.0002739,7]
[385087565,1757661053065,-160.66673745,0.0002739,60]
[385087567,1757661053074,-500.0,0.0002739,20]
[385087569,1757661053084,-500.0,0.0002739,5]
[385087571,1757661053092,-500.0,0.0002739,5]
[385087573,1757661053102,-500.0,0.0002739,5]
[385087575,1757661053111,-500.0,0.0002739,5]
[385087577,1757661053125,-260.0,0.00027397,5]
[385087579,1757661053135,-200.0,0.00027397,2]
[385087581,1757661053145,-657.05,0.00027397,7]
[385087583,1757661053154,-657.05,0.00027397,7]
[385087585,1757661053164,-657.05,0.00027397,7]
[385087587,1757661053173,-657.05,0.00027397,7]
[385087589,1757661053182,-657.05,0.00027397,7]
[385087591,1757661053192,-657.05,0.00027397,7]
[385087593,1757661053202,-657.05,0.00027397,7]
[385087595,1757661053212,-657.05,0.00027397,7]
[385087597,1757661053222,-657.05,0.00027397,7]
[385087599,1757661053231,-657.05,0.00027397,7]
[385087601,1757661053241,-657.05,0.00027397,7]
[385087603,1757661053251,-657.05,0.00027397,7]
[385087605,1757661053260,-657.05,0.00027397,7]
[385087607,1757661053271,-657.05,0.00027397,7]
[385087609,1757661053280,-657.05,0.00027397,7]
[385087611,1757661053290,-657.05,0.00027397,7]
[385087613,1757661053299,-657.05,0.00027397,7]
[385087615,1757661053309,-657.05,0.00027397,7]
[385087617,1757661053318,-657.05,0.00027397,7]
[385087619,1757661053327,-657.05,0.00027397,7]
[385087621,1757661053336,-657.05,0.00027397,7]
[385087623,1757661053346,-657.05,0.00027397,7]
[385087625,1757661053356,-657.05,0.00027397,7]
[385087627,1757661053365,-657.19036844,0.00027397,7]
[385087628,1757661053374,-480.0,0.00027397,2]
[385087630,1757661053384,-480.0,0.00027397,2]
[385087632,1757661053394,-480.0,0.00027397,2]
[385087634,1757661053403,-608.08009932,0.00027397,2]
[385087636,1757661053414,-653.09119509,0.00027397,5]
[385087638,1757661053423,-1000.0,0.00027397,7]
[385087640,1757661053432,-1000.0,0.00027397,7]
[385087642,1757661053441,-1000.0,0.00027397,7]
[385087644,1757661053452,-1000.0,0.00027397,7]
[385087646,1757661053462,-279.15225839,0.00027397,2]
[385087648,1757661053471,-500.0,0.00027397,5]
[385087650,1757661053482,-730.0,0.00027398,2]
[385087652,1757661053491,-1430.05319151,0.00027398,120]
[385087654,1757661053500,-153.98936375,0.00027398,120]
[385087656,1757661053509,-500.0,0.00027404,2]
[385087658,1757661053519,-1486.43566667,0.00027408,2]
[385087660,1757661053529,-160.03233712,0.00027419,2]
[385087662,1757661053538,-500.0,0.00027428,2]
[385087664,1757661053547,-200.0,0.00027439,120]
[385087666,1757661053556,-200000.0,0.0002744,2]
[385087668,1757661053565,-500000.0,0.0002744,7]
[385087670,1757661053575,-500.0,0.0002744,5]
[385087672,1757661053584,-500.0,0.0002744,5]
[385087674,1757661053595,-500.0,0.0002744,5]
[385087676,1757661053604,-500.0,0.0002744,5]
[385087678,1757661053613,-500.0,0.0002744,5]
[385087679,1757661053622,-500.0,0.0002744,5]
[385087681,1757661053631,-381.32831409,0.0002744,5]
[385087683,1757661053641,-1100.0,0.00027442,2]
[385087685,1757661053650,-500.0,0.00027455,2]
[385087687,1757661053659,-174.18485673,0.00027459,2]
[385087689,1757661053669,-800.0,0.0002747,2]
[385087691,1757661053678,-7678.54239753,0.00027489,7]
[385087693,1757661053688,-45281.29387166,0.000275,2]
[385087695,1757661053697,-400.0,0.000275,4]
[385087697,1757661053706,-200.0,0.000275,120]
[385087699,1757661053715,-96670.92,0.000275,7]
[385087701,1757661053725,-10294.11,0.000275,7]
[385087703,1757661053734,-1486.43566667,0.00027508,2]
[385087704,1757661053743,-260.53302523,0.00027547,2]
[385087705,1757661053753,-500.0,0.00027573,2]
[385087706,1757661053761,-800.0,0.00027578,2]
[385087707,1757661053770,-500.0,0.00027587,2]
[385087708,1757661053779,-200.0,0.000276,120]
[385087709,1757661053788,-593.96793,0.000276,120]
[385087710,1757661053797,-355.01853,0.000276,120]
[385087711,1757661053806,-200.0,0.000276,120]
[385087712,1757661053815,-204.0,0.000276,19]
[385087713,1757661053824,-1486.43566667,0.00027608,2]
[385087714,1757661053833,-814.2,0.00027609,7]
[385087715,1757661053842,-1100.0,0.00027636,2]
[385087716,1757661053851,-500.0,0.00027654,2]
[385087717,1757661053859,-730.0,0.00027672,2]
[385087718,1757661053868,-6613.75458258,0.00027703,2]
[385087719,1757661053878,-1486.43566667,0.00027708,2]
[385087720,1757661053886,-500.0,0.00027712,2]
[385087721,1757661053895,-160.0,0.00027728,120]
[385087722,1757661053905,-1100.0,0.00027775,2]
[385087723,1757661053914,-800.0,0.00027793,2]
[385087724,1757661053923,-1486.43566667,0.00027808,2]
[385087725,1757661053932,-11320.0033063,0.00027816,5]
[385087726,1757661053942,-563172.22,0.00027819,6]
[385087727,1757661053950,-146047.3,0.00027819,6]
[385087728,1757661053959,-800.0,0.00027837,2]
[385087729,1757661053968,-800.0,0.00027874,2]
[385087730,1757661053978,-800.0,0.00027877,2]
[385087731,1757661053987,-500.0,0.0002788,2]
[385087732,1757661053996,-800.0,0.00027884,2]
[385087733,1757661054005,-153.0,0.00027884,2]
[385087734,1757661054014,-153.0,0.00027884,2]
[385087735,1757661054023,-153.0,0.00027885,2]
[385087736,1757661054032,-7678.54239753,0.00027888,8]
[385087737,1757661054042,-153.0,0.00027895,2]
[385087739,1757661054051,-153.0,0.00027895,2]
[385087740,1757661054060,-153.0,0.00027896,2]
[385087742,1757661054070,-500.0,0.00027898,2]
[385087744,1757661054079,-169.28625432,0.000279,5]
[385087746,1757661054089,-153.0,0.00027907,2]
[385087748,1757661054099,-153.0,0.00027907,2]
[385087750,1757661054108,-153.0,0.00027908,2]
[385087752,1757661054117,-160.854289,0.00027908,60]
[385087754,1757661054130,-159.844691,0.00027908,60]
[385087756,1757661054139,-153.0,0.00027918,2]
[385087758,1757661054148,-153.0,0.00027919,2]
[385087760,1757661054157,-500.0,0.00027922,2]
[385087762,1757661054167,-260.53302523,0.00027925,2]
[385087764,1757661054175,-1100.0,0.00027925,2]
[385087766,1757661054185,-1100.0,0.00027927,2]
[385087768,1757661054195,-153.0,0.00027931,2]
[385087770,1757661054204,-1000.0,0.00027945,5]
[385087772,1757661054214,-730.0,0.00027946,2]
[385087774,1757661054223,-800.0,0.00027954,2]
[385087776,1757661054232,-800.0,0.00027997,2]
[385087778,1757661054242,-10285.77682875,0.00028,5]
[385087780,1757661054251,-10000.0,0.00028,2]
[385087782,1757661054261,-1000.0,0.00028,4]
[385087784,1757661054270,-50620.31529947,0.00028,120]
[385087786,1757661054279,-4858.0,0.00028,7]
[385087788,1757661054289,-1026.0,0.00028,30]
[385087790,1757661054299,-1000.37469644,0.00028,120]
[385087792,1757661054308,-417.15472785,0.00028,30]
[385087794,1757661054318,-2000.0,0.00028,60]
[385087796,1757661054328,-160.0,0.00028,10]
[385087798,1757661054337,-417.15472785,0.00028,120]
[385087800,1757661054346,-200.0,0.00028,120]
[385087802,1757661054356,-1712.27,0.00028,60]
[385087804,1757661054366,-1773.16512641,0.00028,120]
[385087806,1757661054375,-151.0,0.00028,2]
[385087808,1757661054385,-847.0429734,0.00028,3]
[385087810,1757661054395,-847.0429734,0.00028,3]
[385087812,1757661054404,-217.7145751,0.00028,3]
[385087814,1757661054414,-217.7145751,0.00028,3]
[385087816,1757661054423,-233.13074058,0.00028,3]
[385087818,1757661054433,-233.13074058,0.00028,3]
[385087820,1757661054442,-160.0,0.00028,3]
[385087822,1757661054452,-417.15472785,0.00028,120]
[385087824,1757661054462,-162.43,0.00028,14]
[385087826,1757661054471,-14000.0,0.00028,2]
[385087828,1757661054481,-5000.0,0.00028,60]
[385087830,1757661054491,-1000.0,0.00028,120]
[385087832,1757661054501,-1037.65,0.00028,2]
[385087834,1757661054510,-200.0,0.00028006,120]
[385087836,1757661054519,-729.36585017,0.00028014,2]
[385087838,1757661054530,-200.0,0.0002803,120]
[385087840,1757661054539,-800.0,0.00028054,2]
[385087842,1757661054548,-800.0,0.00028072,2]
[385087844,1757661054557,-800.0,0.00028084,2]
[385087846,1757661054568,-1100.0,0.00028091,2]
[385087848,1757661054578,-151.0,0.000281,120]
[385087850,1757661054587,-1582.4,0.000281,7]
[385087852,1757661054597,-200.0,0.00028123,120]
[385087854,1757661054606,-500.0,0.00028139,2]
[385087856,1757661054616,-1037.65,0.0002814,2]
[385087858,1757661054625,-966.45,0.00028147,2]
[385087860,1757661054635,-310.8588,0.000282,120]
[385087862,1757661054644,-200.0,0.000282,120]
[385087864,1757661054652,-200.0,0.000282,120]
[385087866,1757661054661,-200.0,0.000282,120]
[385087868,1757661054671,-200.0,0.000282,120]
[385087870,1757661054679,-593.96793,0.000282,120]
[385087872,1757661054688,-200.0,0.000282,120]
[385087874,1757661054698,-730.0,0.0002822,2]
[385087876,1757661054707,-200.0,0.00028266,120]
[385087878,1757661054717,-500.0,0.00028276,2]
[385087880,1757661054726,-1100.0,0.00028285,2]
[385087881,1757661054736,-7678.54239753,0.00028288,9]
[385087884,1757661054746,-800.0,0.00028288,2]
[385087886,1757661054755,-800.0,0.00028289,2]
[385087888,1757661054764,-515.56748773,0.000283,30]
[385087889,1757661054773,-260.53302523,0.00028303,2]
[385087891,1757661054782,-6613.75458258,0.00028303,2]
[385087893,1757661054792,-500.0,0.00028311,2]
[385087895,1757661054801,-312.1,0.00028347,60]
[385087897,1757661054812,-1100.0,0.00028347,2]
[385087899,1757661054821,-1000.0,0.0002835,60]
[385087901,1757661054831,-500.0,0.00028352,2]
[385087904,1757661054840,-2286.0,0.0002837,60]
[385087906,1757661054849,-779.21924401,0.0002837,60]
[385087907,1757661054858,-546.17,0.00028371,60]
[385087909,1757661054867,-182.9284024,0.00028375,60]
[385087911,1757661054876,-500.0,0.00028377,2]
[385087913,1757661054886,-345.464582,0.00028381,61]
[385087915,1757661054895,-198.0937328,0.00028382,60]
[385087917,1757661054904,-2600.0,0.00028384,7]
[385087919,1757661054915,-502.71139243,0.00028389,60]
[385087921,1757661054924,-436.0,0.0002839,60]
[385087923,1757661054934,-5000.0,0.00028392,60]
[385087926,1757661054943,-5000.0,0.00028392,60]
[385087928,1757661054953,-1062.0,0.00028397,30]
[385087929,1757661054962,-200.0,0.000284,120]
[385087931,1757661054971,-300.0,0.00028403,2]
[385087933,1757661054981,-808.99690221,0.00028403,2]
[385087936,1757661054990,-296.61877563,0.00028403,2]
[385087938,1757661055000,-326.72341104,0.00028403,2]
[385087939,1757661055009,-291.59284763,0.00028403,2]
[385087941,1757661055019,-636.680807,0.00028403,2]
[385087943,1757661055028,-156.48215278,0.00028403,2]
[385087945,1757661055037,-157.49116752,0.00028403,2]
[385087947,1757661055046,-507.14158597,0.00028403,2]
[385087949,1757661055055,-179.14213134,0.00028403,2]
[385087951,1757661055064,-467.44471043,0.00028403,2]
[385087953,1757661055074,-189.00405481,0.00028403,2]
[385087955,1757661055083,-650.62193191,0.00028403,2]
[385087957,1757661055093,-903.69884813,0.00028403,2]
[385087969,1757661055200,-163.15992165,0.00028403,2]
[385087971,1757661055211,-201.2809118,0.00028403,2]
[385087973,1757661055220,-166.45304256,0.00028403,2]
[385087975,1757661055230,-150.20555382,0.00028403,2]
[385087977,1757661055239,-258.3039762,0.00028403,2]
[385087979,1757661055249,-91179.92053465,0.00028403,2]
[385087981,1757661055259,-3878.55557197,0.00028403,2]
[385087983,1757661055268,-51698.56360438,0.00028403,2]
[385087985,1757661055278,-6289.23283574,0.00028403,2]
[385087987,1757661055287,-30431.66105428,0.00028403,2]
[385087989,1757661055297,-5890.23221212,0.00028403,2]
[385087991,1757661055306,-10677.1049843,0.00028403,2]
[385087993,1757661055315,-2920.0,0.00028403,2]
[385087995,1757661055324,-100188.35088249,0.00028403,2]
[385087997,1757661055333,-1360.71961926,0.00028403,2]
[385087999,1757661055342,-1715.49898955,0.00028403,2]
[385088001,1757661055352,-1868.16298089,0.00028403,2]
[385088003,1757661055361,-1395.73020096,0.00028403,2]
[385088005,1757661055371,-1589.0,0.00028403,3]
[385088007,1757661055380,-254.62108684,0.00028403,2]
[385088009,1757661055389,-48000.0,0.00028403,2]
[385088011,1757661055399,-2074.13269006,0.00028403,2]
[385088013,1757661055409,-3763.999999,0.00028403,2]
[385088015,1757661055418,-5030.18444044,0.00028403,2]
[385088017,1757661055427,-48979.13935267,0.00028403,2]
[385088019,1757661055437,-9223.78914466,0.00028403,5]
[385088021,1757661055446,-4500.0,0.00028403,2]
[385088023,1757661055455,-2347.08685963,0.00028403,2]
[385088025,1757661055464,-3055.20945851,0.00028403,2]
[385088027,1757661055474,-959914.00803162,0.00028403,20]
[385088054,1757661055725,-480.0,0.00013709,2]
[385088056,1757661055735,-484.81400004,0.00013711,2]
[385088058,1757661055746,-480.0,0.00013983,2]
[385088060,1757661055755,-208.64,0.00014256,2]
[385088062,1757661055764,-200.0,0.00028403,120]
[385088064,1757661055774,-200.0,0.00028403,120]
[385088066,1757661055783,-814.2,0.0002841,30]
[385088068,1757661055792,-168.64599996,0.0002841,20]
[385088071,1757661055805,-361.57439764,0.0002841,20]
[385088080,1757661055885,-340.365,0.00013711,2]
[385088082,1757661055898,-139.635,0.00013711,2]
[385088084,1757661055908,-480.0,0.00013812,2]
[385088086,1757661055917,-485.85955837,0.00013985,2]
[385088088,1757661055927,-480.0,0.00014086,2]
[385088090,1757661055936,-4438.96094163,0.0002841,20]
[385088099,1757661056006,-480.0,0.00013711,2]
[385088101,1757661056016,-480.0,0.00013812,2]
[385088103,1757661056025,-480.0,0.00013985,2]
[385088105,1757661056034,-480.0,0.00014086,2]
[385088107,1757661056043,-480.0,0.00014259,2]
[385088109,1757661056052,-153.0,0.00027873,2]
[385088111,1757661056062,-638706.92696463,0.0002841,20]
[385088113,1757661056073,-4575.3,0.0002841,20]
[385088593,1757661060742,480.0,0.0001357,2]
[385088969,1757661068783,480.0,0.0001357,2]
[385088973,1757661084937,960.0,0.0001357,2]
[385088975,1757661092916,300.0,0.0001357,2]
[385088976,1757661108676,960.0,0.0001357,2]
[385088977,1757661117180,300.0,0.0001357,2]
[385088978,1757661118231,5692.68752957,0.00013614,2]
[385088979,1757661118292,10000.01,0.00013614,2]
[385088980,1757661118352,10000.01,0.00013614,2]
[385088981,1757661118413,10000.01,0.00013614,2]
[385088982,1757661118472,10000.01,0.00013614,2]
[385088983,1757661118533,10000.01,0.00013614,2]
[385088984,1757661118595,10000.01,0.00013614,2]
[385088985,1757661118658,10000.01,0.00013614,2]
[385088986,1757661118722,10000.01,0.00013614,2]
[385088987,1757661118784,10000.01,0.00013614,2]
[385088988,1757661118820,41172.54466308,0.00013614,2]
[385088989,1757661118885,170.82718854,0.00013614,2]
[385088990,1757661120225,-162.49800696,0.00013614,2]
[385088991,1757661123813,1000.0,0.00012977,2]
[385088992,1757661130773,-321.24900348,0.00013614,2]
[385088993,1757661131846,1174.0,0.00013613,2]
[385088994,1757661133141,-196.91157007,0.00013614,2]
[385088995,1757661133453,379.66723494,0.00013478,2]
[385088996,1757661137598,-375.0321232,0.00013614,2]
[385088998,1757661163456,803.0,0.00013477,2]
[385089001,1757661179363,1006.0,0.00013477,2]
[385089002,1757661183251,300.0,0.00013612,2]
[385089003,1757661187436,503.0,0.00013477,2]
[385089005,1757661208192,-170.85607153,0.00013613,2]
[385089006,1757661208281,-183.39395309,0.00013613,2]
[385089007,1757661208364,-503.42510948,0.00013613,2]
[385089008,1757661208433,-556.5641686,0.00013613,2]
[385089009,1757661208511,-500.0,0.00013613,2]
[385089010,1757661208583,-500.0,0.00013613,2]
[385089011,1757661208652,-500.0,0.00013613,2]
[385089012,1757661208719,-500.0,0.00013613,2]
[385089013,1757661208781,-500.0,0.00013613,2]
[385089014,1757661208850,-423.49541929,0.00013613,2]
[385089015,1757661208931,-500.0,0.00013613,2]
[385089016,1757661209001,-120.69176098,0.00013613,2]
[385089017,1757661209296,-83.15703406,0.00013613,2]
[385089018,1757661209369,-500.0,0.00013613,2]
[385089019,1757661209451,-500.0,0.00013613,2]
[385089020,1757661209521,-486.52957393,0.00013613,2]
[385089021,1757661209593,-500.0,0.00013613,2]
[385089022,1757661209669,-466.79649047,0.00013613,2]
[385089023,1757661209859,-218.53294338,0.00013613,2]
[385089024,1757661212157,-165.77456623,0.00012812,2]
[385089025,1757661235320,-14.02672907,0.00012812,2]
[385089026,1757661235823,-9430.63590838,0.00013614,2]
[385089027,1757661236014,-10000.01,0.00013614,2]
[385089028,1757661236374,-10000.01,0.00013614,2]
[385089029,1757661236612,-10000.01,0.00013614,2]
[385089030,1757661236812,-10000.01,0.00013614,2]
[385089031,1757661237023,-10000.01,0.00013614,2]
[385089032,1757661237226,-10000.01,0.00013614,2]
[385089033,1757661237431,-1079.41077274,0.00013614,2]
[385089034,1757661237496,-480.0,0.00013707,2]
[385089035,1757661237561,-480.0,0.00013707,2]
[385089036,1757661237627,-480.0,0.00013707,2]
[385089037,1757661237696,-480.0,0.00013707,2]
[385089038,1757661237762,-480.0,0.00013707,2]
[385089039,1757661237829,-480.0,0.00013707,2]
[385089040,1757661237898,-480.0,0.00013709,2]
[385089041,1757661237968,-480.0,0.00013709,2]
[385089042,1757661238541,-161.18845452,0.00013709,2]
[385089053,1757661241960,-318.81154548,0.00013709,2]
[385089054,1757661242029,-480.0,0.00013709,2]
[385089055,1757661242103,-480.0,0.00013709,2]
[385089056,1757661242169,-480.0,0.00013709,2]
[385089057,1757661242238,-480.0,0.00013709,2]
[385089058,1757661242310,-480.0,0.00013709,2]